fUST/lending_fUST_20250819
["ID","MTS","AMOUNT","RATE_DAILY","PERIOD"]
[380184508,1755598258097,-573.71,0.00021095,2]
[380184509,1755598258107,-643.97,0.00021095,2]
[380184510,1755598258115,-1764.71,0.00021095,2]
[380184511,1755598258125,-728.38,0.00021095,2]
[380184512,1755598258134,-598.4,0.00021095,2]
[380184513,1755598258145,-480.0,0.00021095,2]
[380184514,1755598258156,-714.7,0.00021095,2]
[380184515,1755598258166,-232.377118,0.00021095,2]
[380184516,1755598258175,-232.377118,0.00021095,2]
[380184517,1755598258184,-482.54212,0.00021095,2]
[380184518,1755598258194,-482.54212,0.00021095,2]
[380184519,1755598258203,-779.93,0.00021095,2]
[380184520,1755598258212,-2426.87,0.00021095,2]
[380184521,1755598258221,-7280.33,0.00021095,2]
[380184522,1755598258230,-240.23940201,0.00021095,2]
[380184523,1755598258240,-5907.38,0.00021095,2]
[380184524,1755598258315,-547.61,0.00021095,2]
[380184525,1755598258325,-172.15071712,0.00021095,2]
[380184526,1755598258334,-711.69,0.00021095,2]
[380184527,1755598258343,-480.0,0.00021095,2]
[380184528,1755598258352,-480.0,0.00021095,2]
[380184529,1755598258361,-480.0,0.00021095,2]
[380184530,1755598258371,-480.0,0.00021095,2]
[380184531,1755598258380,-995.77,0.00021095,2]
[380184532,1755598258390,-1008.46,0.00021095,2]
[380184533,1755598258399,-864.22,0.00021095,2]
[380184534,1755598258409,-2250.25,0.00021095,2]
[380184535,1755598258418,-942.15,0.00021095,2]
[380184536,1755598258428,-179.443811,0.00021095,2]
[380184537,1755598258437,-179.443811,0.00021095,2]
[380184538,1755598258446,-2584.01,0.00021095,2]
[380184539,1755598258455,-480.0,0.00021095,2]
[380184540,1755598258465,-480.0,0.00021095,2]
[380184541,1755598258475,-1502.78,0.00021095,2]
[380184542,1755598258484,-463.0,0.00021096,2]
[380184543,1755598258494,-151.0,0.00021096,2]
[380184544,1755598258503,-286.61748694,0.00021096,2]
[380184545,1755598258513,-228.6204456,0.00021096,2]
[380184546,1755598258522,-2000.0,0.00021116,2]
[380184547,1755598258531,-5822.07405261,0.00021138,2]
[380184548,1755598258542,-500.0,0.00021138,2]
[380184549,1755598258553,-168.0,0.00021152,2]
[380184550,1755598258562,-168.0,0.00021197,2]
[380184551,1755598258572,-10600.52246766,0.000212,30]
[380184552,1755598258581,-600.0,0.00021211,2]
[380184553,1755598258591,-8698.4325839,0.00021269,2]
[380184554,1755598258600,-172.6887896,0.00021333,2]
[380184555,1755598258612,-168.0,0.00021362,2]
[380184556,1755598258622,-490.25,0.00021369,2]
[380184557,1755598258631,-480.0,0.00021369,2]
[380184558,1755598258640,-499.0806776,0.00021369,2]
[380184559,1755598258648,-902.48,0.00021369,2]
[380184560,1755598258658,-354.10946796,0.00021369,2]
[380184561,1755598258667,-725.55,0.00021369,2]
[380184562,1755598258676,-153.011688,0.00021369,2]
[380184563,1755598258685,-151.0,0.00021369,2]
[380184564,1755598258694,-480.0,0.00021369,2]
[380184565,1755598258703,-1247.19,0.00021369,2]
[380184566,1755598258712,-151.0,0.00021369,2]
[380184567,1755598258721,-151.0,0.00021369,2]
[380184568,1755598258730,-480.0,0.00021369,2]
[380184569,1755598258741,-660.66,0.00021369,2]
[380184570,1755598258761,-1189.71,0.00021369,2]
[380184571,1755598258782,-306.939837,0.00021369,2]
[380184572,1755598258803,-306.939837,0.00021369,2]
[380184573,1755598258821,-714.85,0.00021369,2]
[380184574,1755598258829,-480.0,0.00021369,2]
[380184575,1755598258837,-486.74,0.00021369,2]
[380184576,1755598258845,-151.0,0.00021369,2]
[380184577,1755598258854,-480.0,0.00021369,2]
[380184578,1755598258863,-258.391223,0.00021369,2]
[380184579,1755598258872,-258.391223,0.00021369,2]
[380184580,1755598258882,-480.0,0.00021369,2]
[380184581,1755598258891,-916.97,0.00021369,2]
[380184582,1755598258900,-254.621728,0.00021369,2]
[380184583,1755598258909,-254.621728,0.00021369,2]
[380184584,1755598258919,-480.0,0.00021369,2]
[380184585,1755598258928,-480.0,0.00021369,2]
[380184586,1755598258938,-843.11,0.00021369,2]
[380184587,1755598258947,-564.0,0.00021369,2]
[380184588,1755598258955,-480.0,0.00021369,2]
[380184589,1755598258965,-480.0,0.00021369,2]
[380184590,1755598258974,-791.09,0.00021369,2]
[380184591,1755598258983,-152.51292251,0.00021369,2]
[380184592,1755598258992,-428.517852,0.00021369,2]
[380184593,1755598259001,-428.517852,0.00021369,2]
[380184594,1755598259009,-480.0,0.00021369,2]
[380184595,1755598259018,-480.0,0.00021369,2]
[380184596,1755598259027,-828.89,0.00021369,2]
[380184597,1755598259036,-480.0,0.00021369,2]
[380184598,1755598259045,-598.46,0.00021369,2]
[380184599,1755598259054,-3132.72,0.00021369,2]
[380184600,1755598259063,-673.66,0.00021369,2]
[380184601,1755598259072,-1418.18,0.00021369,2]
[380184602,1755598259081,-3906.62,0.00021369,2]
[380184603,1755598259090,-1042.33,0.00021369,2]
[380184604,1755598259098,-1126.17,0.00021369,2]
[380184605,1755598259107,-480.0,0.00021369,2]
[380184606,1755598259116,-480.0,0.00021369,2]
[380184607,1755598259125,-660.83,0.00021369,2]
[380184608,1755598259134,-480.0,0.00021369,2]
[380184609,1755598259143,-375.76623749,0.00021369,2]
[380184610,1755598259159,-1118.0,0.00021369,2]
[380184611,1755598259168,-300.64682098,0.00021369,2]
[380184612,1755598259177,-2337.35,0.00021369,2]
[380184613,1755598259186,-1618.92,0.00021369,2]
[380184614,1755598259195,-583.08,0.00021369,2]
[380184615,1755598259204,-783.0,0.00021369,2]
[380184616,1755598259213,-2007.25,0.00021369,2]
[380184617,1755598259222,-556.94,0.00021369,2]
[380184618,1755598259232,-483.23,0.00021369,2]
[380184619,1755598259241,-2279.4,0.00021369,2]
[380184620,1755598259250,-867.74,0.00021369,2]
[380184621,1755598259259,-480.0,0.00021369,2]
[380184622,1755598259268,-647.49,0.00021369,2]
[380184623,1755598259277,-480.0,0.00021369,2]
[380184624,1755598259285,-573.71,0.00021369,2]
[380184625,1755598259294,-1764.71,0.00021369,2]
[380184626,1755598259303,-643.97,0.00021369,2]
[380184627,1755598259313,-728.38,0.00021369,2]
[380184628,1755598259322,-598.4,0.00021369,2]
[380184629,1755598259331,-480.0,0.00021369,2]
[380184630,1755598259340,-714.7,0.00021369,2]
[380184631,1755598259349,-779.93,0.00021369,2]
[380184632,1755598259358,-2426.87,0.00021369,2]
[380184633,1755598259367,-7280.33,0.00021369,2]
[380184634,1755598259375,-5907.38,0.00021369,2]
[380184635,1755598259384,-547.61,0.00021369,2]
[380184636,1755598259393,-711.69,0.00021369,2]
[380184637,1755598259402,-480.0,0.00021369,2]
[380184638,1755598259411,-480.0,0.00021369,2]
[380184639,1755598259420,-480.0,0.00021369,2]
[380184640,1755598259430,-480.0,0.00021369,2]
[380184641,1755598259439,-995.77,0.00021369,2]
[380184642,1755598259447,-1008.46,0.00021369,2]
[380184643,1755598259456,-864.22,0.00021369,2]
[380184644,1755598259465,-403.12395828,0.00021369,2]
[380184645,1755598259840,-480.0,0.00019178,2]
[380184646,1755598259849,-480.0,0.00019178,2]
[380184647,1755598259858,-480.0,0.00019178,2]
[380184648,1755598259867,-480.0,0.00019178,2]
[380184649,1755598259876,-480.0,0.00019452,2]
[380184650,1755598259885,-480.0,0.00019452,2]
[380184651,1755598259894,-480.0,0.00019452,2]
[380184652,1755598259903,-480.0,0.00019452,2]
[380184653,1755598259912,-480.0,0.00019726,2]
[380184654,1755598259921,-480.0,0.00019726,2]
[380184655,1755598259930,-440.0,0.00019726,2]
[380184656,1755598259941,-385.0399947,0.00019726,2]
[380184657,1755598259950,-480.0,0.00019726,2]
[380184658,1755598259959,-1397.09,0.0002,2]
[380184659,1755598259968,-558.02013117,0.0002,2]
[380184660,1755598259977,-480.0,0.0002,2]
[380184661,1755598259986,-160.0,0.0002,3]
[380184662,1755598259996,-124.81187413,0.00020119,2]
[380184663,1755598260007,-283.18812587,0.00020119,2]
[380184664,1755598260017,-1397.09,0.00020273,2]
[380184665,1755598260026,-480.0,0.00020273,2]
[380184666,1755598260036,-1397.09,0.00020547,2]
[380184667,1755598260046,-1080.46,0.00020821,2]
[380184668,1755598260057,-1397.09,0.00020821,2]
[380184669,1755598260067,-1080.46,0.00021095,2]
[380184670,1755598260077,-1397.09,0.00021095,2]
[380184671,1755598260088,-1847.12604172,0.00021369,2]
[380184672,1755598260097,-942.15,0.00021369,2]
[380184673,1755598260107,-2584.01,0.00021369,2]
[380184674,1755598260116,-480.0,0.00021369,2]
[380184675,1755598260125,-480.0,0.00021369,2]
[380184676,1755598260134,-786.5904436,0.00021369,2]
[380184677,1755598260244,-480.0,0.00019178,2]
[380184678,1755598260254,-480.0,0.00019178,2]
[380184679,1755598260263,-480.0,0.00019178,2]
[380184680,1755598260272,-233.57057935,0.00019178,2]
[380184681,1755598260282,-480.0,0.00019452,2]
[380184682,1755598260292,-480.0,0.00019452,2]
[380184683,1755598260301,-716.1895564,0.00021369,2]
[380184684,1755598260311,-1080.46,0.00021369,2]
[380184685,1755598260321,-1397.09,0.00021369,2]
[380184686,1755598260330,-463.0,0.0002137,2]
[380184687,1755598260340,-151.9927141,0.00021377,2]
[380184688,1755598260350,-187.645326,0.00021397,2]
[380184689,1755598260360,-195.151139,0.00021397,2]
[380184690,1755598260370,-425.52378039,0.00021421,2]
[380184691,1755598260379,-856.99342905,0.00021428,2]
[380184692,1755598260389,-180.495187,0.0002146,4]
[380184693,1755598260399,-3148.71445896,0.000215,2]
[380184694,1755598260409,-306.0,0.00021507,2]
[380184695,1755598260418,-1283.57591187,0.00021512,2]
[380184696,1755598260428,-470.0,0.00021517,2]
[380184697,1755598260438,-720.0,0.00021517,20]
[380184698,1755598260448,-5822.07405261,0.00021551,2]
[380184699,1755598260457,-460.0,0.00021561,2]
[380184700,1755598260467,-168.0,0.00021589,2]
[380184701,1755598260476,-180.495187,0.000216,5]
[380184702,1755598260552,-151.0,0.000216,2]
[380184703,1755598260562,-151.0,0.000216,2]
[380184704,1755598260572,-151.0,0.000216,2]
[380184705,1755598260582,-156.51328,0.000216,2]
[380184706,1755598260591,-151.0,0.000216,2]
[380184707,1755598260602,-199.097115,0.000216,2]
[380184708,1755598260611,-184.89444,0.000216,2]
[380184709,1755598260621,-184.89444,0.000216,2]
[380184710,1755598260631,-232.377118,0.000216,2]
[380184711,1755598260640,-232.377118,0.000216,2]
[380184712,1755598260650,-482.54212,0.000216,2]
[380184713,1755598260660,-482.54212,0.000216,2]
[380184714,1755598260669,-179.443811,0.000216,2]
[380184715,1755598260679,-179.443811,0.000216,2]
[380184716,1755598260688,-24788.57362061,0.000216,2]
[380184717,1755598260700,-2714.10694411,0.000216,2]
[380184718,1755598261742,-480.0,0.00019178,2]
[380184719,1755598261751,-3740.781596,0.000216,2]
[380184720,1755598261787,1514.50338524,0.00019044,2]
[380184721,1755598261872,3485.49661476,0.00019044,2]
[380184722,1755598262328,1802.73699337,0.00019044,2]
[380184723,1755598263233,300.0,0.00019043,2]
[380184724,1755598268593,4411.76639187,0.00018978,2]
[380184725,1755598268617,3176.75686892,0.00018978,2]
[380184726,1755598277636,5000.0,0.00019044,2]
[380184727,1755598293924,1823.24313108,0.00019044,2]
[380184728,1755598293949,3176.75686892,0.00019044,2]
[380184730,1755598296535,181.90311818,0.00018995,2]
[380184731,1755598309359,5000.0,0.00019044,2]
[380184732,1755598324728,1641.3400129,0.00019044,2]
[380184733,1755598324752,3358.6599871,0.00019044,2]
[380184734,1755598340108,5000.0,0.00019044,2]
[380184735,1755598355557,1641.3400129,0.00019044,2]
[380184736,1755598355579,3358.6599871,0.00019044,2]
[380184738,1755598371627,5000.0,0.00019044,2]
[380184739,1755598387260,1641.3400129,0.00019044,2]
[380184740,1755598387285,3358.6599871,0.00019044,2]
[380184742,1755598403378,5000.0,0.00019044,2]
[380184743,1755598418873,1641.3400129,0.00018978,2]
[380184744,1755598418895,100.54048804,0.00018978,2]
[380184745,1755598420025,5000.0,0.00019044,2]
[380184747,1755598430912,1100.0,0.00018356,2]
[380184749,1755598436278,3799.45951196,0.00019044,2]
[380184750,1755598436304,1200.54048804,0.00019044,2]
[380184752,1755598452370,5000.0,0.00019044,2]
[380184753,1755598467857,3799.45951196,0.00019044,2]
[380184754,1755598467880,1200.54048804,0.00019044,2]
[380184755,1755598481473,358.55564018,0.00018868,2]
[380184759,1755598484278,5000.0,0.00019044,2]
[380184760,1755598501001,3440.90387178,0.00019044,2]
[380184761,1755598501026,1559.09612822,0.00019044,2]
[380184762,1755598517904,5000.0,0.00019044,2]
[380184763,1755598534035,3440.90387178,0.00019044,2]
[380184764,1755598534062,1559.09612822,0.00019044,2]
[380184765,1755598536998,300.0,0.0002876,120]
[380184766,1755598549599,203.37764492,0.00018978,2]
[380184767,1755598550716,5000.0,0.00019044,2]
[380184768,1755598555512,185.0868183,0.00018179,2]
[380184769,1755598566850,3052.43940856,0.00019044,2]
[380184770,1755598566872,1947.56059144,0.00019044,2]
[380184771,1755598569030,354.0,0.0002876,120]
[380184772,1755598580820,5636.62706316,0.00018978,2]
[380184773,1755598583026,2415.8123454,0.00019044,2]
[380184774,1755598583048,2584.1876546,0.00019044,2]
[380184775,1755598597902,234.61943285,0.00018995,2]
[380184776,1755598599155,5000.0,0.00019044,2]
[380184777,1755598615055,2181.19291255,0.00018227,2]
[380184778,1755598615077,10000.0,0.00018227,2]
[380184779,1755598615099,10000.0,0.00018227,2]
[380184780,1755598615122,7247.43893595,0.00018227,2]
[380184781,1755598615150,2752.56106405,0.00019044,2]
[380184782,1755598615172,2247.43893595,0.00019044,2]
[380184783,1755598624364,5000.0,0.00019044,2]
[380184784,1755598632824,2752.56106405,0.00019044,2]
[380184785,1755598632847,2247.43893595,0.00019044,2]
[380184786,1755598634686,1003.9448733,0.00018178,2]
[380184787,1755598644602,1000.0,0.00018148,2]
[380184788,1755598648226,5000.0,0.00019044,2]
[380184789,1755598663749,748.61619075,0.00019044,2]
[380184790,1755598663773,4251.38380925,0.00019044,2]
[380184791,1755598679735,5000.0,0.00019044,2]
[380184792,1755598697058,748.61619075,0.00019044,2]
[380184793,1755598697079,4251.38380925,0.00019044,2]
[380184794,1755598698771,5748.61619075,0.00018977,2]
[380184795,1755598698795,10000.0,0.00018977,2]
[380184796,1755598698817,10000.0,0.00018977,2]
[380184797,1755598698838,9596.44380784,0.00018977,2]
[380184798,1755598712450,403.55619216,0.00019044,2]
[380184799,1755598712475,4596.44380784,0.00019044,2]
[380184800,1755598729678,5000.0,0.00019044,2]
[380184801,1755598739052,403.55619216,0.00018148,2]
[380184802,1755598739073,9596.44380784,0.00018148,2]
[380184803,1755598747144,403.55619216,0.00019044,2]
[380184804,1755598747166,4596.44380784,0.00019044,2]
[380184805,1755598764501,5000.0,0.00019044,2]
[380184806,1755598765737,403.55619216,0.00018977,2]
[380184807,1755598765758,3506.13036294,0.00018977,2]
[380184808,1755598780412,5336.0892766,0.00018177,2]
[380184809,1755598781113,1157.78036046,0.00019044,2]
[380184810,1755598781138,3842.21963954,0.00019044,2]
[380184811,1755598800501,5000.0,0.00019044,2]
[380184812,1755598816579,1157.78036046,0.00019044,2]
[380184813,1755598816602,3842.21963954,0.00019044,2]
[380184814,1755598827044,203.50714541,0.00018976,2]
[380184815,1755598831998,5000.0,0.00019044,2]
[380184816,1755598836926,954.27321505,0.00018183,2]
[380184817,1755598836946,80.28815795,0.00018183,2]
[380184818,1755598841547,165.94925814,0.00018978,2]
[380184819,1755598841713,165.94925812,0.00019003,2]
[380184820,1755598842050,165.94925812,0.00019028,2]
[380184821,1755598847505,5000.0,0.00019044,2]
[380184822,1755598863912,4421.86406767,0.00019044,2]
[380184823,1755598863937,578.13593233,0.00019044,2]
[380184824,1755598879914,5000.0,0.00019044,2]
[380184825,1755598896959,4421.86406767,0.00019044,2]
[380184826,1755598896981,578.13593233,0.00019044,2]
[380184827,1755598899575,156.41295523,0.0001898,2]
[380184828,1755598912503,5000.0,0.00019044,2]
[380184829,1755598929062,4265.45111244,0.00019044,2]
[380184830,1755598929084,734.54888756,0.00019044,2]
[380184831,1755598941918,165.94925812,0.00019,2]
[380184832,1755598944371,5000.0,0.00019044,2]
[380184833,1755598952175,1200.0,0.00018356,2]
[380184834,1755598959774,2899.50185432,0.00019044,2]
[380184835,1755598959795,2100.49814568,0.00019044,2]
[380184836,1755598974931,5000.0,0.00019044,2]
[380184837,1755598990958,2899.50185432,0.00019044,2]
[380184838,1755598990980,2100.49814568,0.00019044,2]
[380184839,1755599004121,302.51602579,0.00018949,2]
[380184840,1755599005562,292.4131554,0.00018177,2]
[380184841,1755599007073,5000.0,0.00019044,2]
[380184846,1755599023051,2304.57267313,0.00019044,2]
[380184847,1755599023074,2695.42732687,0.00019044,2]
[380184848,1755599038403,165.94925812,0.00018978,2]
[380184849,1755599039049,5000.0,0.00019044,2]
[380184850,1755599054977,2138.62341501,0.00019044,2]
[380184851,1755599055000,1626.70818148,0.00019044,2]
[380184852,1755599197814,176.033105,0.00018309,2]
[380184853,1755599200723,150.0,0.000189,2]
[380184854,1755599204535,5000.0,0.00019044,2]
[380184855,1755599215442,3047.25871352,0.00018162,2]
[380184856,1755599215466,2685.33087868,0.00018162,2]
[380184857,1755599220777,5000.0,0.00019044,2]
[380184858,1755599223794,192.814161,0.00018505,2]
[380184859,1755599224150,362.96351936,0.00018506,2]
[380184860,1755599236838,1758.89144096,0.00019044,2]
[380184861,1755599236861,3241.10855904,0.00019044,2]
[380184862,1755599237271,-300.0,0.00019077,2]
[380184863,1755599237292,-335.07300087,0.00019077,2]
[380184864,1755599252770,5000.0,0.00019044,2]
[380184865,1755599268646,1758.89144096,0.00019044,2]
[380184866,1755599268669,3241.10855904,0.00019044,2]
[380184867,1755599272810,6758.89144096,0.00018,2]
[380184868,1755599272834,10000.0,0.00018,2]
[380184869,1755599272857,10000.0,0.00018,2]
[380184870,1755599272880,10000.0,0.00018,2]
[380184871,1755599272904,10000.0,0.00018,2]
[380184872,1755599272926,9211.0646391,0.00018,2]
[380184873,1755599277086,788.9353609,0.00018,2]
[380184874,1755599277107,4203.17231035,0.00018,2]
[380184875,1755599296284,5000.0,0.00019044,2]
[380184877,1755599306197,594.72117333,0.00028767,120]
[380184878,1755599312865,796.82768965,0.00019044,2]
[380184879,1755599312892,4203.17231035,0.00019044,2]
[380184880,1755599315842,3324.29,0.00019,2]
[380184881,1755599316645,2472.53768965,0.00017,2]
[380184882,1755599316667,9381.46666744,0.00017,2]
[380184883,1755599319554,618.53333256,0.00018,2]
[380184884,1755599319577,10000.0,0.00018,2]
[380184885,1755599319599,4046.36178078,0.00018,2]
[380184886,1755599322856,165.078673,0.0002,120]
[380184887,1755599328361,5000.0,0.00019044,2]
[380184888,1755599344107,953.63821922,0.00019044,2]
[380184889,1755599344131,4046.36178078,0.00019044,2]
[380184890,1755599361399,5000.0,0.00019044,2]
[380184891,1755599377843,953.63821922,0.00019044,2]
[380184892,1755599377865,4046.36178078,0.00019044,2]
[380184893,1755599382650,179.76630381,0.00018868,2]
[380184894,1755599393184,5000.0,0.00019044,2]
[380184895,1755599394229,-864.92699913,0.00019077,2]
[380184896,1755599394257,-191.0,0.00019077,2]
[380184897,1755599394286,-520.0,0.00019077,2]
[380184898,1755599394315,-300.0,0.00019077,2]
[380184899,1755599394345,-500.0,0.00019077,2]
[380184900,1755599394573,-269.29639285,0.00019077,2]
[380184901,1755599394602,-1028.10840857,0.00019078,2]
[380184902,1755599394632,-368.00531795,0.00019078,2]
[380184903,1755599394712,-1669.17976126,0.00019078,2]
[380184904,1755599395186,-699.91323274,0.00019078,2]
[380184905,1755599395274,-1399.82646548,0.00019078,2]
[380184906,1755599395313,-2200.34706904,0.00019078,2]
[380184907,1755599395341,-298.82515166,0.00019078,2]
[380184908,1755599402689,-300.0,0.00019077,2]
[380184909,1755599404210,-472.0,0.00019077,2]
[380184910,1755599409568,773.87191541,0.00019044,2]
[380184911,1755599409598,4226.12808459,0.00019044,2]
[380184912,1755599417567,1974.94348734,0.00018977,2]
[380184944,1755599432515,-10563.99516536,0.00019078,2]
[380184953,1755599432573,-298.82515166,0.00019078,2]
[380184987,1755599432900,-3505.31808442,0.00019078,2]
[380185009,1755599433096,-5000.0,0.00019078,2]
[380185061,1755599433429,-5000.0,0.00019078,2]
[380185066,1755599433646,-5000.0,0.00019078,2]
[380185067,1755599433859,-5000.0,0.00019078,2]
[380185068,1755599434082,-5000.0,0.00019078,2]
[380185069,1755599434303,-5000.0,0.00019078,2]
[380185070,1755599434536,-5000.0,0.00019078,2]
[380185071,1755599434766,-5000.0,0.00019078,2]
[380185072,1755599435151,-5000.0,0.00019078,2]
[380185073,1755599435328,-5000.0,0.00019078,2]
[380185074,1755599435525,-5000.0,0.00019078,2]
[380185075,1755599435796,-5000.0,0.00019078,2]
[380185076,1755599435974,-5000.0,0.00019078,2]
[380185077,1755599436216,-5000.0,0.00019078,2]
[380185078,1755599436329,-5000.0,0.00019078,2]
[380185079,1755599436557,-5000.0,0.00019078,2]
[380185080,1755599436985,-5000.0,0.00019078,2]
[380185081,1755599437160,-5000.0,0.00019078,2]
[380185082,1755599437326,-5000.0,0.00019078,2]
[380185083,1755599437746,-5000.0,0.00019078,2]
[380185084,1755599437824,-5000.0,0.00019078,2]
[380185088,1755599438081,-5000.0,0.00019078,2]
[380185104,1755599438233,-5000.0,0.00019078,2]
[380185113,1755599438311,-1152.35,0.00019078,2]
[380185120,1755599438369,-388.7955013,0.00019078,2]
[380185122,1755599438381,-137274.88194239,0.00019078,2]
[380185124,1755599438390,-5000.0,0.00019079,2]
[380185126,1755599438399,-500.0,0.000191,2]
[380185128,1755599438408,-500.0,0.00019173,2]
[380185130,1755599438418,-7543.96379605,0.00019176,2]
[380185132,1755599438427,-151.48063496,0.00019177,2]
[380185134,1755599438437,-228.91774938,0.00019177,2]
[380185136,1755599438447,-402.52370245,0.00019178,2]
[380185138,1755599438456,-508.66346385,0.00019178,2]
[380185140,1755599438465,-460.61551438,0.00019178,2]
[380185142,1755599438475,-480.0,0.00019178,2]
[380185144,1755599438484,-460.45699337,0.00019178,2]
[380185146,1755599438493,-480.0,0.00019178,2]
[380185148,1755599438502,-480.0,0.00019178,2]
[380185150,1755599438511,-480.0,0.00019178,2]
[380185152,1755599438520,-440.0,0.00019178,2]
[380185154,1755599438530,-480.0,0.00019178,2]
[380185156,1755599438539,-480.0,0.00019178,2]
[380185158,1755599438548,-480.0,0.00019178,2]
[380185160,1755599438557,-480.0,0.00019178,2]
[380185162,1755599438567,-480.0,0.00019178,2]
[380185164,1755599438579,-480.68567924,0.00019178,2]
[380185166,1755599438588,-480.0,0.00019178,2]
[380185168,1755599438598,-563.43479515,0.00019178,2]
[380185170,1755599438606,-480.0,0.00019178,2]
[380185172,1755599438616,-480.0,0.00019178,2]
[380185174,1755599438626,-480.0,0.00019178,2]
[380185176,1755599438635,-461.38701534,0.00019178,2]
[380185178,1755599438645,-480.0,0.00019178,2]
[380185180,1755599438655,-480.0,0.00019178,2]
[380185182,1755599438664,-206.03066389,0.00019178,2]
[380185184,1755599438673,-480.0,0.00019178,2]
[380185185,1755599438683,-480.0,0.00019178,2]
[380185187,1755599438692,-481.31505185,0.00019178,2]
[380185189,1755599438701,-480.0,0.00019178,2]
[380185191,1755599438710,-386.200219,0.00019178,2]
[380185193,1755599438719,-460.51565308,0.00019178,2]
[380185195,1755599438728,-480.0,0.00019178,2]
[380185197,1755599438738,-565.49961659,0.00019178,2]
[380185199,1755599438748,-480.0,0.00019178,2]
[380185201,1755599438757,-480.0,0.00019178,2]
[380185203,1755599438766,-480.0,0.00019178,2]
[380185206,1755599438777,-481.11003947,0.00019178,2]
[380185207,1755599438787,-460.61306758,0.00019178,2]
[380185209,1755599438796,-258.91631588,0.00019178,2]
[380185211,1755599438805,-480.0,0.00019178,2]
[380185213,1755599438814,-480.0,0.00019178,2]
[380185215,1755599438823,-480.0,0.00019178,2]
[380185217,1755599438833,-480.0,0.00019178,2]
[380185219,1755599438842,-488.72897337,0.00019178,2]
[380185221,1755599438851,-480.0,0.00019178,2]
[380185223,1755599438860,-482.15648392,0.00019178,2]
[380185225,1755599438869,-480.0,0.00019178,2]
[380185227,1755599438878,-480.0,0.00019178,2]
[380185229,1755599438888,-480.0,0.00019178,2]
[380185231,1755599438898,-480.0,0.00019178,2]
[380185233,1755599438908,-480.0,0.00019178,2]
[380185235,1755599438917,-480.0,0.00019178,2]
[380185237,1755599438927,-480.0,0.00019178,2]
[380185239,1755599438936,-480.0,0.00019178,2]
[380185241,1755599438946,-199.71109605,0.00019178,2]
[380185243,1755599438955,-480.0,0.00019178,2]
[380185245,1755599438965,-480.0,0.00019178,2]
[380185247,1755599438974,-480.0,0.00019178,2]
[380185249,1755599438983,-480.0,0.00019178,2]
[380185251,1755599438992,-480.0,0.00019178,2]
[380185253,1755599439001,-480.0,0.00019178,2]
[380185255,1755599439010,-480.0,0.00019178,2]
[380185257,1755599439019,-462.38344847,0.00019178,2]
[380185259,1755599439028,-480.0,0.00019178,2]
[380185261,1755599439037,-480.0,0.00019178,2]
[380185263,1755599439046,-480.0,0.00019178,2]
[380185265,1755599439054,-480.0,0.00019178,2]
[380185267,1755599439064,-480.0,0.00019178,2]
[380185269,1755599439073,-480.0,0.00019178,2]
[380185270,1755599439082,-480.0,0.00019178,2]
[380185272,1755599439091,-480.0,0.00019178,2]
[380185274,1755599439101,-482.06286153,0.00019178,2]
[380185276,1755599439110,-480.0,0.00019178,2]
[380185278,1755599439121,-480.0,0.00019178,2]
[380185280,1755599439130,-460.61820503,0.00019178,2]